fUSD/lending_fUSD_20250513
["ID","MTS","AMOUNT","RATE_DAILY","PERIOD"]
[360903263,1747133435604,-400.0,0.0001198,2]
[360903264,1747133435613,-400.0,0.0001198,2]
[360903265,1747133435623,-400.0,0.0001198,2]
[360903266,1747133435637,-450.0,0.0001198,2]
[360903267,1747133435647,-400.0,0.0001198,2]
[360903268,1747133435657,-400.0,0.0001198,2]
[360903269,1747133435668,-400.0,0.0001198,2]
[360903270,1747133435678,-571.18,0.0001198,2]
[360903271,1747133435688,-400.0,0.0001198,2]
[360903272,1747133435698,-400.0,0.0001198,2]
[360903273,1747133435709,-151.0,0.0001198,2]
[360903274,1747133435718,-400.0,0.0001198,2]
[360903275,1747133435728,-400.0,0.0001198,2]
[360903276,1747133435738,-400.0,0.0001198,2]
[360903277,1747133435748,-458.71,0.0001198,2]
[360903278,1747133435758,-400.0,0.0001198,2]
[360903279,1747133435767,-400.0,0.0001198,2]
[360903280,1747133435777,-400.0,0.0001198,2]
[360903281,1747133435787,-400.0,0.0001198,2]
[360903282,1747133435796,-400.0,0.0001198,2]
[360903283,1747133435806,-400.0,0.0001198,2]
[360903284,1747133435816,-400.0,0.0001198,2]
[360903285,1747133435826,-400.0,0.0001198,2]
[360903286,1747133435836,-400.0,0.0001198,2]
[360903287,1747133435847,-400.0,0.0001198,2]
[360903288,1747133435856,-400.0,0.0001198,2]
[360903289,1747133435866,-400.0,0.0001198,2]
[360903290,1747133435875,-400.0,0.0001198,2]
[360903291,1747133435884,-400.0,0.0001198,2]
[360903292,1747133435894,-400.0,0.0001198,2]
[360903293,1747133435904,-400.0,0.0001198,2]
[360903294,1747133435914,-400.0,0.0001198,2]
[360903295,1747133435924,-400.0,0.0001198,2]
[360903296,1747133435934,-400.0,0.0001198,2]
[360903297,1747133435943,-400.0,0.0001198,2]
[360903298,1747133435954,-460.14597865,0.0001198,2]
[360903299,1747133435964,-400.0,0.0001198,2]
[360903300,1747133435976,-400.0,0.0001198,2]
[360903301,1747133435987,-400.0,0.0001198,2]
[360903302,1747133435998,-207.332717,0.0001198,2]
[360903303,1747133436010,-400.0,0.0001198,2]
[360903304,1747133436029,-400.0,0.0001198,2]
[360903305,1747133436039,-400.0,0.0001198,2]
[360903306,1747133436048,-400.0,0.0001198,2]
[360903307,1747133436059,-400.0,0.0001198,2]
[360903308,1747133436068,-400.0,0.0001198,2]
[360903309,1747133436077,-400.0,0.0001198,2]
[360903310,1747133436087,-400.0,0.0001198,2]
[360903311,1747133436097,-400.0,0.0001198,2]
[360903312,1747133436106,-376.28475487,0.0001198,2]
[360903313,1747133436115,-400.0,0.0001198,2]
[360903314,1747133436125,-507.65,0.0001198,2]
[360903315,1747133436134,-400.0,0.0001198,2]
[360903316,1747133436142,-400.0,0.0001198,2]
[360903317,1747133436151,-400.0,0.0001198,2]
[360903318,1747133436160,-491.48,0.0001198,2]
[360903319,1747133436170,-400.0,0.0001198,2]
[360903320,1747133436181,-400.0,0.0001198,2]
[360903321,1747133436190,-400.0,0.0001198,2]
[360903322,1747133436200,-520.83,0.0001198,2]
[360903323,1747133436209,-656.28,0.0001198,2]
[360903324,1747133436219,-541.78,0.0001198,2]
[360903325,1747133436228,-1537.52,0.0001198,2]
[360903326,1747133436238,-907.54,0.0001198,2]
[360903327,1747133436255,-477.98634892,0.0001198,2]
[360903328,1747133436423,-1018.95,0.0001198,2]
[360903329,1747133436433,-855.56,0.0001198,2]
[360903330,1747133436443,-400.0,0.0001198,2]
[360903331,1747133436453,-466.9,0.0001198,2]
[360903332,1747133436463,-400.0,0.0001198,2]
[360903333,1747133436473,-400.0,0.0001198,2]
[360903334,1747133436483,-400.0,0.0001198,2]
[360903335,1747133436492,-400.0,0.0001198,2]
[360903336,1747133436504,-400.0,0.0001198,2]
[360903337,1747133436514,-5431.71,0.0001198,2]
[360903338,1747133436525,-400.0,0.0001198,2]
[360903339,1747133436534,-400.0,0.0001198,2]
[360903340,1747133436544,-911.42,0.0001198,2]
[360903341,1747133436553,-11954.51,0.0001198,2]
[360903342,1747133436563,-400.0,0.0001198,2]
[360903343,1747133436573,-5464.59,0.0001198,2]
[360903344,1747133436582,-965.63,0.0001198,2]
[360903345,1747133436592,-655.89,0.0001198,2]
[360903346,1747133436602,-400.0,0.0001198,2]
[360903347,1747133436611,-400.0,0.0001198,2]
[360903348,1747133436620,-400.0,0.0001198,2]
[360903349,1747133436629,-400.0,0.0001198,2]
[360903350,1747133436638,-744.44,0.0001198,2]
[360903351,1747133436648,-400.0,0.0001198,2]
[360903352,1747133436658,-400.0,0.0001198,2]
[360903353,1747133436668,-400.0,0.0001198,2]
[360903354,1747133436679,-502.01093229,0.0001198,2]
[360903355,1747133436688,-1909.39,0.0001198,2]
[360903356,1747133436698,-4077.67,0.0001198,2]
[360903357,1747133436708,-400.0,0.0001198,2]
[360903358,1747133436717,-400.0,0.0001198,2]
[360903359,1747133436726,-147.11416091,0.0001198,2]
[360903360,1747133436748,-1641.67583909,0.0001198,2]
[360903361,1747133436758,-400.0,0.0001198,2]
[360903362,1747133436767,-400.0,0.0001198,2]
[360903363,1747133436776,-400.0,0.0001198,2]
[360903364,1747133436788,-400.0,0.0001198,2]
[360903365,1747133436797,-827.9,0.0001198,2]
[360903366,1747133436807,-457.65,0.0001198,2]
[360903367,1747133436816,-400.0,0.0001198,2]
[360903368,1747133436825,-400.0,0.0001198,2]
[360903369,1747133436835,-5097.44,0.0001198,2]
[360903370,1747133436844,-113.49523391,0.0001198,2]
[360903378,1747133438151,-1020.04,0.00011979,2]
[360903380,1747133438165,-286.50476609,0.0001198,2]
[360903382,1747133438174,-400.0,0.0001198,2]
[360903384,1747133438185,-400.0,0.0001198,2]
[360903386,1747133438195,-896.89,0.0001198,2]
[360903387,1747133438205,-207.41,0.0001198,2]
[360903389,1747133438214,-615.963052,0.0001198,2]
[360903391,1747133438223,-400.0,0.0001198,2]
[360903394,1747133438232,-461.86,0.0001198,2]
[360903397,1747133438242,-430.77,0.0001198,2]
[360903399,1747133438251,-54.06218191,0.0001198,2]
[360903430,1747133439922,-21.896575,0.0001198,2]
[360903431,1747133439935,-682.28124309,0.0001198,2]
[360903432,1747133439945,-615.963052,0.0001198,2]
[360903433,1747133439955,-151.0,0.0001198,2]
[360903434,1747133439964,-106.23819872,0.0001198,2]
[360903441,1747133440468,-0.00546229,0.0001198,2]
[360903470,1747133443988,200.0,0.00011141,2]
[360903474,1747133445748,-400.0,0.00011979,2]
[360903475,1747133445758,-1241.59,0.00011979,2]
[360903476,1747133445767,-293.75633899,0.0001198,2]
[360903477,1747133445777,-1077.08,0.0001198,2]
[360903478,1747133445786,-400.0,0.0001198,2]
[360903479,1747133445796,-400.0,0.0001198,2]
[360903480,1747133445807,-228.020647,0.0001198,2]
[360903481,1747133445816,-400.0,0.0001198,2]
[360903482,1747133445827,-1582.37,0.0001198,2]
[360903483,1747133445836,-601.96,0.0001198,2]
[360903484,1747133445846,-758.97,0.0001198,2]
[360903485,1747133445855,-400.0,0.0001198,2]
[360903486,1747133445865,-10.53480615,0.0001198,2]
[360903487,1747133445888,-389.46519385,0.0001198,2]
[360903488,1747133445898,-45.84382877,0.0001198,2]
[360903489,1747133446075,-471.82730592,0.00011979,2]
[360903490,1747133446085,-400.0,0.00011979,2]
[360903491,1747133446094,-354.15617123,0.0001198,2]
[360903492,1747133446104,-400.0,0.0001198,2]
[360903493,1747133446114,-400.0,0.0001198,2]
[360903494,1747133446123,-400.0,0.0001198,2]
[360903496,1747133446133,-400.0,0.0001198,2]
[360903498,1747133446142,-400.0,0.0001198,2]
[360903500,1747133446152,-622.79,0.0001198,2]
[360903502,1747133446161,-400.0,0.0001198,2]
[360903504,1747133446171,-400.0,0.0001198,2]
[360903506,1747133446180,-711.76,0.0001198,2]
[360903507,1747133446191,-151.0,0.0001198,2]
[360903527,1747133446361,-400.0,0.0001198,2]
[360903529,1747133446382,-778.57,0.0001198,2]
[360903531,1747133446392,-964.87,0.0001198,2]
[360903533,1747133446401,-400.0,0.0001198,2]
[360903535,1747133446410,-400.0,0.0001198,2]
[360903537,1747133446420,-933.72,0.0001198,2]
[360903539,1747133446429,-400.0,0.0001198,2]
[360903541,1747133446439,-538.0,0.0001198,2]
[360903543,1747133446449,-640.45,0.0001198,2]
[360903545,1747133446458,-666.29,0.0001198,2]
[360903547,1747133446468,-1288.45,0.0001198,2]
[360903549,1747133446477,-611.49,0.0001198,2]
[360903551,1747133446490,-912.63,0.0001198,2]
[360903553,1747133446500,-400.0,0.0001198,2]
[360903555,1747133446511,-400.0,0.0001198,2]
[360903557,1747133446520,-999.5,0.0001198,2]
[360903559,1747133446530,-623.35,0.0001198,2]
[360903561,1747133446539,-400.0,0.0001198,2]
[360903563,1747133446548,-400.0,0.0001198,2]
[360903565,1747133446557,-400.0,0.0001198,2]
[360903567,1747133446566,-400.0,0.0001198,2]
[360903569,1747133446575,-400.0,0.0001198,2]
[360903570,1747133446585,-400.0,0.0001198,2]
[360903572,1747133446596,-400.0,0.0001198,2]
[360903574,1747133446605,-607.2,0.0001198,2]
[360903576,1747133446615,-400.0,0.0001198,2]
[360903578,1747133446625,-770.96,0.0001198,2]
[360903580,1747133446634,-1310.63,0.0001198,2]
[360903582,1747133446643,-400.0,0.0001198,2]
[360903585,1747133446656,-583.66,0.0001198,2]
[360903587,1747133446665,-400.0,0.0001198,2]
[360903589,1747133446674,-151.0,0.0001198,2]
[360903591,1747133446684,-705.29,0.0001198,2]
[360903593,1747133446694,-400.0,0.0001198,2]
[360903595,1747133446704,-151.0,0.0001198,2]
[360903597,1747133446713,-400.0,0.0001198,2]
[360903599,1747133446722,-400.0,0.0001198,2]
[360903600,1747133446732,-400.0,0.0001198,2]
[360903602,1747133446741,-400.0,0.0001198,2]
[360903604,1747133446750,-857.42,0.0001198,2]
[360903606,1747133446759,-400.0,0.0001198,2]
[360903608,1747133446769,-400.0,0.0001198,2]
[360903610,1747133446778,-352.77431918,0.0001198,2]
[360903612,1747133446788,-1903.15,0.0001198,2]
[360903614,1747133446797,-510.63,0.0001198,2]
[360903616,1747133446806,-1790.58,0.0001198,2]
[360903618,1747133446815,-480.55,0.0001198,2]
[360903620,1747133446825,-400.0,0.0001198,2]
[360903622,1747133446834,-400.0,0.0001198,2]
[360903624,1747133446843,-400.0,0.0001198,2]
[360903626,1747133446852,-2937.52,0.0001198,2]
[360903628,1747133446862,-400.0,0.0001198,2]
[360903630,1747133446871,-911.97,0.0001198,2]
[360903632,1747133446881,-400.0,0.0001198,2]
[360903634,1747133446890,-400.0,0.0001198,2]
[360903636,1747133446899,-2163.46,0.0001198,2]
[360903638,1747133446908,-400.0,0.0001198,2]
[360903640,1747133446918,-400.0,0.0001198,2]
[360903642,1747133446927,-400.0,0.0001198,2]
[360903644,1747133446936,-1598.24,0.0001198,2]
[360903646,1747133446945,-400.0,0.0001198,2]
[360903648,1747133446954,-400.0,0.0001198,2]
[360903650,1747133446963,-400.0,0.0001198,2]
[360903652,1747133446973,-400.0,0.0001198,2]
[360903654,1747133446982,-560.23,0.0001198,2]
[360903656,1747133446991,-1342.93,0.0001198,2]
[360903658,1747133447001,-400.0,0.0001198,2]
[360903660,1747133447011,-1041.95220367,0.0001198,2]
[360903662,1747133447024,-686.88779633,0.0001198,2]
[360903664,1747133447034,-400.0,0.0001198,2]
[360903666,1747133447043,-328.91030785,0.0001198,2]
[360903701,1747133449538,165.5,0.00011475,2]
[360903703,1747133525944,1000.0,0.00011057,2]
[360903704,1747133572232,289.14,0.00011057,2]
[360903706,1747133592657,246.61,0.00011057,2]
[360903707,1747133592851,246.61,0.0001106,2]
[360903708,1747133593046,246.61,0.00011063,2]
[360903709,1747133593264,246.61,0.00011066,2]
[360903710,1747133593909,246.61,0.00011069,2]
[360903711,1747133593976,246.61,0.00011072,2]
[360903712,1747133594083,246.61,0.00011075,2]
[360903713,1747133594488,246.61,0.00011078,2]
[360903714,1747133594714,246.61,0.00011081,2]
[360903715,1747133595272,246.61,0.00011084,2]
[360903716,1747133595318,246.61,0.00011086,2]
[360903717,1747133595361,246.61,0.00011089,2]
[360903718,1747133595531,246.61,0.00011092,2]
[360903719,1747133595728,246.61,0.00011095,2]
[360903720,1747133595920,246.61,0.00011098,2]
[360903721,1747133596157,246.61,0.00011101,2]
[360903722,1747133596359,246.61,0.00011104,2]
[360903723,1747133596570,246.61,0.00011107,2]
[360903724,1747133596795,246.61,0.0001111,2]
[360903725,1747133596983,246.61,0.00011113,2]
[360903726,1747133597785,446.73,0.00011057,2]
[360903727,1747133610079,-500.0,0.00011865,2]
[360903728,1747133610109,-500.0,0.00011865,2]
[360903729,1747133610137,-500.0,0.00011865,2]
[360903730,1747133610166,-603.73239986,0.00011865,2]
[360903731,1747133610192,-200.0,0.00011887,2]
[360903732,1747133610218,-429.84728694,0.00011907,2]
[360903733,1747133610242,-200.0,0.00011933,2]
[360903734,1747133610267,-183.3262917,0.00011939,2]
[360903735,1747133610292,-207.4,0.00011973,2]
[360903736,1747133610318,-2704.46,0.00011979,2]
[360903737,1747133610343,-400.0,0.00011979,2]
[360903738,1747133610366,-724.41,0.00011979,2]
[360903739,1747133610390,-400.0,0.00011979,2]
[360903740,1747133610415,-400.0,0.00011979,2]
[360903741,1747133610438,-400.0,0.00011979,2]
[360903742,1747133610463,-400.0,0.00011979,2]
[360903743,1747133610488,-415.23204008,0.00011979,2]
[360903744,1747133610511,-400.0,0.00011979,2]
[360903745,1747133610536,-400.0,0.00011979,2]
[360903746,1747133610563,-400.0,0.00011979,2]
[360903747,1747133610586,-400.0,0.00011979,2]
[360903748,1747133610610,-400.0,0.00011979,2]
[360903749,1747133610633,-150.0,0.00011979,2]
[360903750,1747133610657,-400.0,0.00011979,2]
[360903751,1747133610679,-400.0,0.00011979,2]
[360903752,1747133610702,-859.52,0.00011979,2]
[360903753,1747133610726,-400.0,0.00011979,2]
[360903754,1747133610749,-573.59,0.00011979,2]
[360903755,1747133610772,-534.69,0.00011979,2]
[360903756,1747133610795,-297.77166261,0.00011979,2]
[360903757,1747133610819,-400.0,0.00011979,2]
[360903758,1747133610842,-466.16815826,0.00011979,2]
[360903759,1747133610865,-400.0,0.00011979,2]
[360903760,1747133610887,-400.0,0.00011979,2]
[360903761,1747133610911,-685.99,0.00011979,2]
[360903762,1747133610934,-400.0,0.00011979,2]
[360903763,1747133610958,-400.0,0.00011979,2]
[360903764,1747133610981,-400.0,0.00011979,2]
[360903765,1747133611003,-501.0,0.00011979,2]
[360903766,1747133611026,-400.0,0.00011979,2]
[360903767,1747133611048,-400.0,0.00011979,2]
[360903768,1747133611072,-400.0,0.00011979,2]
[360903769,1747133611094,-400.0,0.00011979,2]
[360903770,1747133611118,-400.0,0.00011979,2]
[360903771,1747133611142,-400.0,0.00011979,2]
[360903772,1747133611166,-400.0,0.00011979,2]
[360903773,1747133611190,-420.35568803,0.00011979,2]
[360903774,1747133611212,-400.0,0.00011979,2]
[360903775,1747133611237,-400.0,0.00011979,2]
[360903776,1747133611260,-400.0,0.00011979,2]
[360903777,1747133611284,-400.0,0.00011979,2]
[360903778,1747133611308,-1234.76,0.00011979,2]
[360903779,1747133611332,-691.15,0.00011979,2]
[360903780,1747133611357,-400.0,0.00011979,2]
[360903781,1747133611380,-400.0,0.00011979,2]
[360903782,1747133611402,-597.38,0.00011979,2]
[360903783,1747133611424,-1272.8,0.00011979,2]
[360903784,1747133611447,-400.0,0.00011979,2]
[360903785,1747133611470,-613.76,0.00011979,2]
[360903786,1747133611492,-427.1116661,0.00011979,2]
[360903787,1747133611515,-473.63,0.00011979,2]
[360903788,1747133611538,-581.9,0.00011979,2]
[360903789,1747133611563,-400.0,0.00011979,2]
[360903790,1747133611585,-400.0,0.00011979,2]
[360903791,1747133611610,-1256.02,0.00011979,2]
[360903792,1747133611632,-1663.98,0.00011979,2]
[360903793,1747133611655,-400.0,0.00011979,2]
[360903794,1747133611676,-400.0,0.00011979,2]
[360903795,1747133611699,-400.0,0.00011979,2]
[360903796,1747133611721,-433.93717482,0.00011979,2]
[360903797,1747133611742,-400.0,0.00011979,2]
[360903798,1747133611765,-935.1,0.00011979,2]
[360903799,1747133611787,-400.0,0.00011979,2]
[360903800,1747133611812,-821.69,0.00011979,2]
[360903801,1747133611835,-419.69,0.00011979,2]
[360903802,1747133612050,-400.0,0.00011979,2]
[360903803,1747133612077,-400.0,0.00011979,2]
[360903804,1747133612103,-400.0,0.00011979,2]
[360903805,1747133612126,-400.0,0.00011979,2]
[360903806,1747133612149,-400.0,0.00011979,2]
[360903807,1747133612172,-400.0,0.00011979,2]
[360903808,1747133612195,-400.0,0.00011979,2]
[360903809,1747133612218,-400.0,0.00011979,2]
[360903810,1747133612240,-400.0,0.00011979,2]
[360903811,1747133612263,-400.0,0.00011979,2]
[360903812,1747133612285,-400.0,0.00011979,2]
[360903813,1747133612308,-400.0,0.00011979,2]
[360903814,1747133612330,-400.0,0.00011979,2]
[360903815,1747133612352,-542.09,0.00011979,2]
[360903816,1747133612376,-400.0,0.00011979,2]
[360903817,1747133612398,-431.86,0.00011979,2]
[360903818,1747133612420,-400.0,0.00011979,2]
[360903819,1747133612442,-400.0,0.00011979,2]
[360903820,1747133612466,-400.0,0.00011979,2]
[360903821,1747133612489,-400.0,0.00011979,2]
[360903822,1747133612512,-1350.27,0.00011979,2]
[360903823,1747133612535,-400.0,0.00011979,2]
[360903824,1747133612560,-400.0,0.00011979,2]
[360903825,1747133612583,-536.89,0.00011979,2]
[360903826,1747133612608,-441.66,0.00011979,2]
[360903827,1747133612632,-51321.32969215,0.0001198,2]
[360903828,1747133612656,-400.0,0.0001198,2]
[360903829,1747133612679,-400.0,0.0001198,2]
[360903830,1747133612702,-400.0,0.0001198,2]
[360903831,1747133612727,-400.0,0.0001198,2]
[360903832,1747133612750,-400.0,0.0001198,2]
[360903833,1747133612773,-531.77,0.0001198,2]
[360903834,1747133612797,-673.82,0.0001198,2]
[360903835,1747133612821,-769.36,0.0001198,2]
[360903836,1747133612844,-400.0,0.0001198,2]
[360903837,1747133612868,-2777.31,0.0001198,2]
[360903838,1747133612891,-400.27,0.0001198,2]
[360903839,1747133612914,-400.0,0.0001198,2]
[360903840,1747133612936,-400.0,0.0001198,2]
[360903841,1747133612959,-400.0,0.0001198,2]
[360903842,1747133612984,-400.0,0.0001198,2]
[360903843,1747133613006,-400.0,0.0001198,2]
[360903844,1747133613030,-32995.1,0.0001198,2]
[360903845,1747133613053,-400.0,0.0001198,2]
[360903846,1747133613076,-400.0,0.0001198,2]
[360903847,1747133613099,-400.0,0.0001198,2]
[360903848,1747133613123,-299.95081796,0.0001198,2]
[360903849,1747133613147,-2210.59,0.0001198,2]
[360903850,1747133613170,-585.6,0.0001198,2]
[360903851,1747133613192,-151.0,0.0001198,2]
[360903852,1747133613216,-420.47,0.0001198,2]
[360903853,1747133613239,-151.0,0.0001198,2]
[360903854,1747133613262,-151.0,0.0001198,2]
[360903855,1747133613286,-1756.14,0.0001198,2]
[360903856,1747133613309,-400.0,0.0001198,2]
[360903857,1747133613333,-400.0,0.0001198,2]
[360903858,1747133613358,-400.0,0.0001198,2]
[360903859,1747133613380,-400.68132919,0.0001198,2]
[360903860,1747133613403,-5205.39,0.0001198,2]
[360903861,1747133613427,-400.0,0.0001198,2]
[360903862,1747133613449,-401.35164333,0.0001198,2]
[360903863,1747133613472,-11456.4,0.0001198,2]
[360903864,1747133613495,-400.0,0.0001198,2]
[360903865,1747133613520,-400.0,0.0001198,2]
[360903866,1747133613543,-216.34286311,0.0001198,2]
[360903867,1747133613573,-400.0,0.0001198,2]
[360903868,1747133613597,-1516.44,0.0001198,2]
[360903869,1747133613622,-713.42,0.0001198,2]
[360903870,1747133613647,-563.27,0.0001198,2]
[360903871,1747133613670,-400.0,0.0001198,2]
[360903872,1747133613695,-727.34,0.0001198,2]
[360903873,1747133613719,-1036.06,0.0001198,2]
[360903874,1747133613743,-1829.83,0.0001198,2]
[360903875,1747133613765,-3907.77,0.0001198,2]
[360903876,1747133613788,-400.0,0.0001198,2]
[360903877,1747133613811,-400.0,0.0001198,2]
[360903878,1747133613834,-400.0,0.0001198,2]
[360903879,1747133613858,-400.0,0.0001198,2]
[360903880,1747133613882,-400.0,0.0001198,2]
[360903881,1747133613905,-4885.05,0.0001198,2]
[360903882,1747133613929,-585.83,0.0001198,2]
[360903883,1747133613953,-400.0,0.0001198,2]
[360903884,1747133613976,-400.0,0.0001198,2]
[360903885,1747133614011,-700.1,0.0001198,2]
[360903886,1747133614037,-428.05,0.0001198,2]
[360903887,1747133614063,-515.58,0.0001198,2]
[360903888,1747133614087,-474.51,0.0001198,2]
[360903889,1747133614112,-755.86,0.0001198,2]
[360903890,1747133614138,-442.61,0.0001198,2]
[360903891,1747133614162,-400.0,0.0001198,2]
[360903892,1747133614188,-400.0,0.0001198,2]
[360903893,1747133614219,-400.0,0.0001198,2]
[360903894,1747133614245,-874.61,0.0001198,2]
[360903895,1747133614269,-400.0,0.0001198,2]
[360903896,1747133614294,-602.68,0.0001198,2]
[360903897,1747133614320,-1881.31,0.0001198,2]
[360903898,1747133614346,-661.07,0.0001198,2]
[360903899,1747133614371,-400.0,0.0001198,2]
[360903900,1747133614397,-400.0,0.0001198,2]
[360903901,1747133614422,-400.0,0.0001198,2]
[360903902,1747133614447,-400.0,0.0001198,2]
[360903903,1747133614472,-277.69687403,0.0001198,2]
[360903904,1747133614497,-400.0,0.0001198,2]
[360903905,1747133614522,-400.0,0.0001198,2]
[360903906,1747133614552,-400.0,0.0001198,2]
[360903907,1747133614587,-622.62,0.0001198,2]
[360903908,1747133614612,-400.0,0.0001198,2]
[360903909,1747133614637,-400.0,0.0001198,2]
[360903910,1747133614663,-400.0,0.0001198,2]
[360903911,1747133614693,-458.13,0.0001198,2]
[360903912,1747133614720,-450.0,0.0001198,2]
[360903913,1747133614744,-1162.0,0.0001198,2]
[360903914,1747133614768,-274.20711542,0.0001198,2]
[360903915,1747133614792,-915.21,0.0001198,2]
[360903916,1747133614818,-638.53,0.0001198,2]
[360903917,1747133614843,-1715.97,0.0001198,2]
[360903918,1747133614867,-902.78,0.0001198,2]
[360903919,1747133615119,-412.14,0.0001198,2]
[360903920,1747133615144,-400.0,0.0001198,2]
[360903921,1747133615167,-738.83,0.0001198,2]
[360903922,1747133615190,-470.67,0.0001198,2]
[360903923,1747133615212,-400.0,0.0001198,2]
[360903924,1747133615236,-873.97,0.0001198,2]
[360903925,1747133615259,-400.0,0.0001198,2]
[360903926,1747133615283,-675.9,0.0001198,2]
[360903927,1747133615309,-333.54187228,0.0001198,2]
[360903928,1747133615334,-400.0,0.0001198,2]
[360903929,1747133615359,-400.0,0.0001198,2]
[360903930,1747133615382,-400.0,0.0001198,2]
[360903931,1747133615407,-1823.85,0.0001198,2]
[360903932,1747133615430,-1656.81,0.0001198,2]
[360903933,1747133615452,-507.2567103,0.0001198,2]
[360903934,1747133615477,-400.0,0.0001198,2]
[360903935,1747133615501,-400.0,0.0001198,2]
[360903936,1747133615526,-400.0,0.0001198,2]
[360903937,1747133615552,-2815.12,0.0001198,2]
[360903938,1747133615577,-151.0,0.00011981,2]
[360903939,1747133615602,-151.602679,0.00011981,2]
[360903940,1747133615625,-151.0,0.00011981,2]
[360903941,1747133615650,-151.0,0.00011981,2]
[360903942,1747133615674,-728.753,0.00011981,2]
[360903943,1747133615697,-151.0,0.00011981,2]
[360903944,1747133615720,-151.0,0.00011981,2]
[360903945,1747133615742,-151.0,0.00011981,2]
[360903946,1747133615765,-151.0,0.00011981,2]
[360903947,1747133615788,-151.0,0.00011981,2]
[360903948,1747133615811,-151.0,0.00011981,2]
[360903949,1747133615833,-840.88,0.00011981,2]
[360903950,1747133615856,-608.55,0.00011981,2]
[360903951,1747133615878,-151.0,0.00011981,2]
[360903952,1747133615900,-151.0,0.00011981,2]
[360903953,1747133615922,-3166.22,0.00011981,2]
[360903954,1747133615945,-151.0,0.00011981,2]
[360903955,1747133615967,-151.0,0.00011981,2]
[360903956,1747133615990,-400.0,0.00011981,2]
[360903957,1747133616012,-151.0,0.00011981,2]
[360903958,1747133616034,-151.0,0.00011981,2]
[360903959,1747133616057,-12375.0550248,0.00011981,2]
[360903960,1747133616080,-615.963052,0.00011981,2]
[360903961,1747133616103,-615.963052,0.00011981,2]
[360903962,1747133616127,-151.0,0.00011981,2]
[360903963,1747133616148,-235.646744,0.00011981,2]
[360903964,1747133616170,-151.0,0.00011981,2]
[360903965,1747133616193,-151.0,0.00011981,2]
[360903966,1747133616214,-6307.5351394,0.00011981,2]
[360903967,1747133616237,-151.0,0.00011982,2]
[360903968,1747133616259,-151.0,0.00011982,2]
[360903969,1747133616281,-151.0,0.00011982,2]
[360903970,1747133616304,-151.0,0.00011982,2]
[360903971,1747133616326,-151.0,0.00011982,2]
[360903972,1747133616349,-151.0,0.00011982,2]
[360903973,1747133616373,-242.223407,0.00011982,2]
[360903974,1747133616395,-151.0,0.00011982,2]
[360903975,1747133616417,-151.0,0.00011982,2]
[360903976,1747133616438,-151.0,0.00011982,2]
[360903977,1747133616460,-151.0,0.00011982,2]